bitfinex-derivatives/quotes_BTCF0:USTF0_20241213
["timestamp","ask_amount","ask_price","bid_price","bid_amount"]
[1734081868597,1.01031881,100110.0,100100.0,0.001]
[1734081868788,1.21927635,100110.0,100100.0,0.001]
[1734081869491,1.01031881,100110.0,100100.0,0.001]
[1734081870087,1.21927635,100110.0,100100.0,0.001]
[1734081870607,1.01031881,100110.0,100100.0,0.001]
[1734081871200,1.21927635,100110.0,100100.0,0.001]
[1734081875198,2.71927635,100110.0,100100.0,0.001]
[1734081877190,2.78217623,100110.0,100100.0,0.001]
[1734081877387,1.07321869,100110.0,100100.0,0.001]
[1734081879189,1.07321869,100110.0,100100.0,0.18079718]
[1734081879599,1.01031881,100110.0,100100.0,0.18079718]
[1734081879792,1.07321869,100110.0,100100.0,0.18079718]
[1734081880397,1.04031869,100110.0,100100.0,0.18079718]
[1734081880902,1.48808484,100110.0,100100.0,0.001]
[1734081882898,1.12327635,100110.0,100100.0,0.001]
[1734081883101,1.18617623,100110.0,100100.0,0.18079718]
[1734081883300,1.18617623,100110.0,100100.0,0.001]
[1734081884503,1.18617623,100110.0,100100.0,0.18079718]
[1734081886401,0.97721869,100110.0,100100.0,0.18079718]
[1734081886802,1.18617623,100110.0,100100.0,0.001]
[1734081888307,1.18617623,100110.0,100100.0,0.18079718]
[1734081891205,1.18617623,100110.0,100100.0,0.001]
[1734081892813,1.42498484,100110.0,100100.0,0.001]
[1734081894509,2.92498484,100110.0,100100.0,0.001]
[1734081896610,2.68617623,100110.0,100100.0,0.001]
[1734081897312,2.75057623,100110.0,100100.0,0.001]
[1734081898408,1.25057623,100110.0,100100.0,0.001]
[1734081898713,0.52897623,100110.0,100100.0,0.001]
[1734081898909,1.25057623,100110.0,100100.0,0.001]
[1734081899415,0.52897623,100110.0,100100.0,0.001]
[1734081899610,1.25057623,100110.0,100100.0,0.0007458]
[1734081900115,1.48938484,100110.0,100100.0,0.0007458]
[1734081900713,1.58258472,100110.0,100100.0,0.0007458]
[1734081901308,1.37362718,100110.0,100100.0,0.0007458]
[1734081901612,1.58274407,100110.0,100100.0,0.0007458]
[1734081904213,1.34393546,100110.0,100100.0,0.0007458]
[1734081904809,1.37362718,100110.0,100100.0,0.0007458]
[1734081905507,1.37362718,100110.0,100080.0,0.41944157]
[1734081905711,0.80206766,100090.0,100080.0,0.41944157]
[1734081906911,0.80306766,100090.0,100080.0,0.42644157]
[1734081907421,0.80306766,100090.0,100080.0,0.42944157]
[1734081909612,0.62393178,100090.0,100080.0,0.42944157]
[1734081910015,0.80306766,100090.0,100080.0,0.42944157]
[1734081911117,0.81325915,100090.0,100080.0,0.42944157]
[1734081911324,0.79693822,100090.0,100080.0,0.42944157]
[1734081911622,0.91317422,100090.0,100080.0,0.42944157]
[1734081912023,0.91317422,100090.0,100080.0,0.49234145]
[1734081912328,0.73403834,100090.0,100080.0,0.49234145]
[1734081914925,0.73403834,100090.0,100080.0,0.24964439]
[1734081915315,0.79693822,100090.0,100080.0,0.42933482]
[1734081915524,0.9232942,100090.0,100080.0,0.01]
[1734081915713,0.74415832,100090.0,100080.0,0.01]
[1734081915922,0.95315018,100090.0,100080.0,0.01]
[1734081917320,0.74415832,100090.0,100080.0,0.01]
[1734081918525,0.95315018,100090.0,100080.0,0.01]
[1734081919320,0.74415832,100090.0,100080.0,0.01]
[1734081919512,0.74315832,100090.0,100080.0,0.003]
[1734081920415,0.92196125,100090.0,100080.0,0.003]
[1734081922825,0.92196125,100090.0,100080.0,1e-06]
[1734081923026,0.74315832,100090.0,100080.0,1e-06]
[1734081924720,0.74315832,100090.0,100050.0,0.49031519]
[1734081924721,0.049967,100060.0,100050.0,0.2403117]
[1734081925027,1.04624179,100060.0,100050.0,0.06090656]
[1734081925325,2.76518546,100060.0,100050.0,0.06090656]
[1734081925930,2.76618546,100060.0,100050.0,0.06790656]
[1734081926429,2.76718546,100060.0,100050.0,0.07690656]
[1734081927724,2.76618546,100060.0,100050.0,0.06990656]
[1734081928026,2.76618546,100060.0,100050.0,0.07290656]
[1734081928328,2.76618546,100060.0,100050.0,0.06990656]
[1734081928329,2.61731043,100060.0,100050.0,0.06990656]
[1734081928528,1.05441055,100060.0,100050.0,0.06990656]
[1734081928735,0.8915956,100060.0,100050.0,0.13280644]
[1734081928923,0.83546688,100060.0,100050.0,0.16460644]
[1734081929830,0.83546688,100060.0,100050.0,0.10170656]
[1734081930528,0.89836676,100060.0,100050.0,0.10170656]
[1734081930728,0.99831179,100060.0,100050.0,0.10170656]
[1734081931428,1.11734039,100060.0,100050.0,0.10170656]
[1734081933531,1.12711913,100060.0,100050.0,0.10170656]
[1734081936234,0.40551913,100060.0,100050.0,0.10170656]
[1734081936438,1.12711913,100060.0,100050.0,0.10170656]
[1734081936825,0.40551913,100060.0,100050.0,0.10170656]
[1734081937022,1.12711913,100060.0,100050.0,0.10170656]
[1734081939241,1.12711913,100060.0,100050.0,0.06990656]
[1734081940232,1.12711913,100060.0,100050.0,0.03950656]
[1734081942742,1.27599416,100060.0,100050.0,0.03950656]
[1734081942944,1.12711913,100060.0,100050.0,0.03950656]
[1734081943343,1.27599416,100060.0,100050.0,0.03950656]
[1734081944439,2.77599416,100060.0,100050.0,0.03950656]
[1734081945138,2.65696556,100060.0,100050.0,0.03950656]
[1734081945339,2.65596556,100060.0,100050.0,0.03350656]
[1734081945539,2.8436156,100060.0,100050.0,0.03450656]
[1734081945843,2.8456156,100060.0,100050.0,0.03150656]
[1734081946240,2.8456156,100060.0,100050.0,0.00110656]
[1734081946241,2.90851548,100060.0,100050.0,0.00110656]
[1734081946446,2.69674057,100060.0,100050.0,0.00110656]
[1734081947148,2.69474057,100060.0,100050.0,0.00110656]
[1734081947348,2.69874057,100060.0,100050.0,0.00110656]
[1734081954346,2.69888307,100060.0,100050.0,0.00110656]
[1734081955446,2.52009053,100060.0,100050.0,0.00110656]
[1734081956245,2.69887262,100060.0,100050.0,0.00110656]
[1734081959751,2.52009053,100060.0,100050.0,0.00110656]
[1734081960055,2.58299041,100060.0,100050.0,0.00110656]
[1734081961356,2.52009053,100060.0,100050.0,0.00110656]
[1734081962250,2.58299041,100060.0,100050.0,0.00110656]
[1734081962653,2.72908239,100060.0,100050.0,0.00110656]
[1734081964651,2.52009053,100060.0,100050.0,0.00110656]
[1734081970553,2.72908239,100060.0,100050.0,0.00110656]
[1734081970757,2.45719065,100060.0,100050.0,0.00110656]
[1734081970955,0.95719065,100060.0,100050.0,0.00110656]
[1734081971154,1.1361256,100060.0,100050.0,0.06280656]
[1734081971850,1.1361256,100060.0,100050.0,0.09540656]
[1734081974457,1.1361256,100060.0,100050.0,0.2748117]
[1734081975063,1.19902548,100060.0,100050.0,0.2748117]
[1734081975671,1.19902548,100060.0,100050.0,0.2422117]
[1734081978457,1.19902548,100060.0,100050.0,0.06280656]
[1734081982969,0.47742548,100060.0,100050.0,0.06280656]
[1734081983265,1.19902548,100060.0,100050.0,0.06280656]
[1734081988570,1.09908045,100060.0,100050.0,0.06280656]
[1734081990171,1.09908045,100060.0,100050.0,0.2422117]
[1734081990758,1.19902548,100060.0,100050.0,0.1805117]
[1734082000879,1.02009053,100060.0,100050.0,0.1805117]
[1734082009383,2.52009053,100060.0,100050.0,0.1805117]
[1734082013884,1.02009053,100060.0,100050.0,0.1805117]
[1734082015679,0.89429077,100060.0,100050.0,0.1805117]
[1734082015993,1.02009053,100060.0,100050.0,0.1805117]
[1734082021690,0.89429077,100060.0,100050.0,0.1805117]
[1734082021890,1.02009053,100060.0,100050.0,0.1805117]
[1734082023002,1.02009053,100060.0,100050.0,0.2129117]
[1734082023199,1.02009053,100060.0,100050.0,0.2430117]
[1734082023699,0.9201455,100060.0,100050.0,0.2430117]
[1734082024590,0.79434574,100060.0,100050.0,0.2430117]
[1734082024790,0.9201455,100060.0,100050.0,0.2430117]
[1734082027998,1.09932021,100060.0,100050.0,0.2430117]
[1734082029002,1.09932021,100060.0,100050.0,0.48265609]
[1734082030397,0.20195345,100060.0,100050.0,0.59603515]
[1734082030601,0.13247322,100060.0,100050.0,2.06529475]
[1734082030800,0.22207097,100060.0,100050.0,2.77521842]
[1734082031196,0.10259775,100060.0,100050.0,2.36529475]
[1734082031397,0.10259775,100060.0,100050.0,2.32156294]
[1734082031590,0.10259775,100060.0,100050.0,2.36529128]
[1734082032202,0.013,100060.0,100050.0,2.62084011]
[1734082032604,0.25903597,100070.0,100050.0,2.68373999]
[1734082032904,0.25903597,100070.0,100060.0,1.01236558]
[1734082033295,0.25903597,100070.0,100060.0,0.89257795]
[1734082033701,0.26503597,100070.0,100060.0,0.89257795]
[1734082034199,0.14556275,100070.0,100060.0,0.89257795]
[1734082034397,0.14856275,100070.0,100060.0,0.89357795]
[1734082035098,0.15756275,100070.0,100060.0,0.89457795]
[1734082035300,0.15756275,100070.0,100060.0,0.95747783]
[1734082036005,0.15756275,100070.0,100060.0,1.34367783]
[1734082037106,0.15756275,100070.0,100060.0,1.21787807]
[1734082037304,0.067965,100070.0,100060.0,1.28077795]
[1734082037501,0.067965,100070.0,100060.0,1.21787807]
[1734082037804,0.067965,100070.0,100060.0,1.28077795]
[1734082038306,0.22046263,100070.0,100060.0,0.61765654]
[1734082041010,0.22046263,100070.0,100060.0,0.68055642]
[1734082043008,0.22046263,100070.0,100060.0,0.61765654]
[1734082044101,0.58126263,100070.0,100060.0,0.56768954]
[1734082044303,0.70073585,100070.0,100060.0,0.3882]
[1734082044604,0.85565669,100070.0,100060.0,0.3882]
[1734082045117,0.85565669,100070.0,100060.0,0.002]
[1734082046203,0.85565669,100070.0,100060.0,0.06489988]
[1734082046204,0.76045669,100070.0,100060.0,0.06489988]
[1734082047309,0.76045669,100070.0,100060.0,0.002]
[1734082047509,0.69755681,100070.0,100060.0,0.002]
[1734082047710,0.76045669,100070.0,100060.0,0.002]
[1734082052320,0.64098347,100070.0,100060.0,0.002]
[1734082059334,0.82015818,100070.0,100060.0,0.002]
[1734082060929,0.64098347,100070.0,100060.0,0.18148954]
[1734082063239,0.11937817,100080.0,100060.0,1.54267512]
[1734082063437,0.14925583,100110.0,100070.0,0.60116176]
[1734082063636,0.24287471,100120.0,100110.0,0.049942]
[1734082063637,0.17917471,100120.0,100110.0,0.049942]
[1734082063839,0.58990771,100130.0,100110.0,1.26186234]
[1734082064040,0.65280759,100130.0,100120.0,0.17949448]
[1734082064340,0.46073504,100130.0,100120.0,0.35523124]
[1734082064538,0.3608,100130.0,100120.0,0.59455722]
[1734082065034,0.3608,100140.0,100130.0,0.049932]
[1734082065241,0.3608,100140.0,100130.0,0.14566352]
[1734082065841,0.3608,100150.0,100130.0,0.68557296]
[1734082066034,0.3608,100150.0,100140.0,0.14565852]
[1734082066438,0.3608,100150.0,100140.0,0.049927]
[1734082066640,0.410722,100150.0,100140.0,0.049927]
[1734082068036,0.410722,100150.0,100140.0,0.14565852]
[1734082068238,0.410722,100150.0,100140.0,0.14665852]
[1734082068239,0.412722,100150.0,100140.0,0.14665852]
[1734082068742,0.419722,100150.0,100140.0,0.14765852]
[1734082069947,0.419722,100150.0,100140.0,0.051927]
[1734082077744,0.26990536,100150.0,100140.0,0.051927]
[1734082083660,0.26990536,100150.0,100140.0,0.002]
[1734082086765,0.26990536,100150.0,100140.0,0.09773152]
[1734082086964,0.26990536,100150.0,100140.0,0.14765852]
[1734082087162,0.26990536,100150.0,100140.0,0.11474998]
[1734082089565,0.26990536,100150.0,100140.0,0.17757296]
[1734082091259,0.26990536,100150.0,100140.0,0.11474998]
[1734082092153,0.26990536,100150.0,100140.0,0.5331854]
[1734082092360,0.009,100150.0,100140.0,0.41689894]
[1734082092555,0.009,100150.0,100140.0,0.77769894]
[1734082092765,0.009,100150.0,100140.0,0.57097296]
[1734082093066,0.009,100150.0,100140.0,1.31999594]
[1734082093258,0.081614,100170.0,100160.0,0.049917]
[1734082093458,0.474209,100180.0,100170.0,0.049912]
[1734082093763,0.72353189,100180.0,100170.0,0.53159777]
[1734082094163,0.62367669,100180.0,100170.0,0.53159777]
[1734082094357,0.80303791,100180.0,100170.0,0.97535081]
[1734082094561,0.62367669,100180.0,100170.0,0.53152161]
[1734082094768,0.474209,100180.0,100170.0,0.65127286]
[1734082094968,0.476209,100180.0,100170.0,0.97531476]
[1734082095460,0.476209,100180.0,100170.0,0.53241647]
[1734082096558,0.476209,100180.0,100170.0,0.53341647]
[1734082096559,0.3628,100180.0,100170.0,0.53341647]
[1734082096753,0.002,100180.0,100170.0,1.52921553]
[1734082096956,0.002,100180.0,100170.0,1.56241553]
[1734082097157,0.002,100180.0,100170.0,1.26322782]
[1734082097360,0.2121,100200.0,100190.0,0.049902]
[1734082097559,0.2121,100200.0,100190.0,0.35166367]
[1734082098362,0.2121,100200.0,100190.0,0.5306799]
[1734082098563,0.2121,100200.0,100190.0,0.29274121]
[1734082099063,0.2121,100200.0,100190.0,0.29374121]
[1734082099270,0.2121,100200.0,100190.0,0.32654851]
[1734082099868,0.1499,100200.0,100190.0,0.32654851]
[1734082100373,0.1499,100200.0,100190.0,0.14753228]
[1734082101466,0.1499,100200.0,100190.0,0.051902]
[1734082102067,0.70613565,100200.0,100190.0,0.002]
[1734082103567,2.20613565,100200.0,100190.0,0.002]
[1734082104074,0.70613565,100200.0,100190.0,0.002]
[1734082104471,2.20613565,100200.0,100190.0,0.002]
[1734082108776,0.049903,100190.0,100160.0,0.56521623]
[1734082108970,0.049912,100170.0,100160.0,0.049916]
[1734082109781,0.049912,100170.0,100160.0,0.14554628]
[1734082110176,0.049912,100170.0,100160.0,0.14654628]
[1734082110370,0.049912,100170.0,100160.0,0.32556251]
[1734082111877,0.049912,100170.0,100160.0,0.18001623]
[1734082114381,0.049912,100170.0,100160.0,0.001]
[1734082114883,0.049912,100170.0,100160.0,0.18001623]
[1734082115276,0.049912,100170.0,100160.0,0.001]
[1734082115475,0.049912,100170.0,100160.0,0.18001623]
[1734082116279,0.049912,100170.0,100160.0,0.001]
[1734082116484,0.049912,100170.0,100160.0,0.18001623]
[1734082117691,0.05978381,100170.0,100160.0,0.18001623]
[1734082117878,0.42058381,100170.0,100160.0,0.18001623]
[1734082118182,0.42058381,100170.0,100160.0,0.001]
[1734082123380,0.53986239,100170.0,100160.0,0.001]
[1734082125995,0.63549267,100170.0,100160.0,0.001]
[1734082126191,0.78496036,100170.0,100160.0,0.001]
[1734082126587,0.68933008,100170.0,100160.0,0.001]
[1734082126786,0.78496036,100170.0,100160.0,0.001]
[1734082127093,0.88479563,100170.0,100160.0,0.001]
[1734082127285,0.85197929,100170.0,100160.0,0.001]
[1734082128087,0.88517929,100170.0,100160.0,0.001]
[1734082128490,0.76590071,100170.0,100160.0,0.001]
[1734082128698,0.94526193,100170.0,100160.0,0.001]
[1734082131700,0.79579424,100170.0,100160.0,0.001]
[1734082138406,0.79579424,100170.0,100160.0,0.18001623]
[1734082138592,0.79579424,100170.0,100160.0,0.001]
[1734082139202,0.61643302,100170.0,100160.0,0.001]
[1734082139594,0.79570649,100170.0,100160.0,0.001]
[1734082141115,0.67924696,100170.0,100160.0,0.001]
[1734082141298,0.85853792,100170.0,100160.0,0.001]
[1734082141601,0.67924696,100170.0,100160.0,0.001]
[1734082142500,0.88850172,100170.0,100160.0,0.001]
[1734082143500,0.67924696,100170.0,100160.0,0.001]
[1734082143707,0.88850172,100170.0,100160.0,0.001]
[1734082144399,0.67924696,100170.0,100160.0,0.001]
[1734082144600,0.90854058,100170.0,100160.0,0.001]
[1734082146504,0.84572664,100170.0,100160.0,0.001]
[1734082146704,0.63647188,100170.0,100160.0,0.001]
[1734082146904,0.69928582,100170.0,100160.0,0.001]
[1734082148511,0.63647188,100170.0,100160.0,0.001]
[1734082153817,0.84572664,100170.0,100160.0,0.001]
[1734082154310,0.63647188,100170.0,100160.0,0.001]
[1734082154511,0.84572664,100170.0,100160.0,0.001]
[1734082154711,0.63647188,100170.0,100160.0,0.001]
[1734082155015,0.84572664,100170.0,100160.0,0.001]
[1734082155406,0.63647188,100170.0,100160.0,0.001]
[1734082155617,0.84572664,100170.0,100160.0,0.001]
[1734082156305,0.87865673,100170.0,100160.0,0.001]
[1734082156502,0.81584279,100170.0,100160.0,0.001]
[1734082157511,0.87865673,100170.0,100160.0,0.001]
[1734082157912,0.81584279,100170.0,100160.0,0.001]
[1734082158111,0.63647188,100170.0,100160.0,0.001]
[1734082158830,0.84572664,100170.0,100160.0,0.001]
[1734082159707,0.90854058,100170.0,100160.0,0.001]
[1734082164107,0.7829127,100170.0,100160.0,0.001]
[1734082164621,0.69928582,100170.0,100160.0,0.001]
[1734082164812,0.90864672,100170.0,100160.0,0.001]
[1734082165920,1.26944672,100170.0,100160.0,0.001]
[1734082170425,1.14381884,100170.0,100160.0,0.001]
[1734082170610,1.26944672,100170.0,100160.0,0.001]
[1734082172617,1.50871632,100170.0,100160.0,0.001]
[1734082172821,1.26944672,100170.0,100160.0,0.001]
[1734082173918,1.50871632,100170.0,100160.0,0.001]
[1734082174912,1.26944672,100170.0,100160.0,0.001]
[1734082175925,0.049917,100160.0,100140.0,0.60183611]
[1734082176117,1.07665673,100150.0,100140.0,0.23952716]
[1734082176316,2.42724988,100150.0,100140.0,0.23952716]
[1734082176631,0.049932,100130.0,100120.0,0.33410499]
[1734082176818,0.62298757,100130.0,100120.0,0.33410499]
[1734082177421,0.62298757,100130.0,100120.0,0.09457783]
[1734082178322,0.62298757,100130.0,100120.0,0.11257783]
[1734082178822,0.62298757,100130.0,100120.0,0.11057783]
[1734082179018,0.62298757,100130.0,100120.0,0.10657783]
[1734082179330,0.7423574,100130.0,100120.0,0.10657783]
[1734082179515,0.62298757,100130.0,100120.0,0.10657783]
[1734082179720,0.7423574,100130.0,100120.0,0.10657783]
[1734082180717,0.90504649,100130.0,100120.0,0.10657783]
[1734082181027,0.72286272,100130.0,100120.0,0.10657783]
[1734082182422,0.84211972,100130.0,100120.0,0.10657783]
[1734082184328,0.85200819,100130.0,100120.0,0.10657783]
[1734082185426,0.70256656,100130.0,100120.0,0.07397783]
[1734082188726,0.85200819,100130.0,100120.0,0.07397783]
[1734082191328,0.70256656,100130.0,100120.0,0.07397783]
[1734082191633,0.85200819,100130.0,100120.0,0.07397783]
[1734082197236,0.58330956,100130.0,100120.0,0.07397783]
[1734082197428,0.58330956,100130.0,100120.0,0.01207783]
[1734082197633,0.76305119,100130.0,100120.0,0.01207783]
[1734082198731,1.36599508,100130.0,100120.0,0.01207783]
[1734082198934,1.21655345,100130.0,100120.0,0.01207783]
[1734082199135,2.71655345,100130.0,100120.0,0.01207783]
[1734082199329,2.5372235,100130.0,100120.0,0.012]
[1734082199524,2.5372235,100130.0,100110.0,0.15678]
[1734082199525,0.049937,100120.0,100110.0,0.15678]
[1734082199835,0.88950768,100120.0,100110.0,0.15678]
[1734082200037,0.77812302,100120.0,100110.0,0.15678]
[1734082200344,0.94081211,100120.0,100080.0,0.33552548]
[1734082200637,0.2021485,100090.0,100080.0,0.39833942]
[1734082201043,0.2021485,100090.0,100080.0,0.15881226]
[1734082201540,0.2021485,100090.0,100080.0,0.09599832]
[1734082201733,0.2021485,100090.0,100080.0,0.10499832]
[1734082201938,0.2021485,100090.0,100080.0,0.07409832]
[1734082203243,0.78304031,100090.0,100080.0,0.01849832]
[1734082203430,0.87585425,100090.0,100080.0,0.01849832]
[1734082203636,0.87262868,100090.0,100080.0,0.01849832]
[1734082203834,0.87262868,100090.0,100080.0,0.017]
[1734082203835,0.93644262,100090.0,100080.0,0.017]
[1734082204037,0.99602402,100090.0,100080.0,0.017]
[1734082204828,0.99602402,100090.0,100080.0,0.008]
[1734082205029,0.99602402,100090.0,100080.0,0.017]
[1734082205342,0.81726588,100090.0,100080.0,0.017]
[1734082205642,0.99602402,100090.0,100080.0,0.016]
[1734082205840,0.81726588,100090.0,100080.0,0.016]
[1734082206440,0.93622579,100090.0,100080.0,0.016]
[1734082206843,0.81726588,100090.0,100080.0,0.016]
[1734082207139,0.93622876,100090.0,100080.0,0.016]
[1734082207335,0.94636175,100090.0,100080.0,0.016]
[1734082208138,0.79739082,100090.0,100080.0,0.016]
[1734082209149,0.88652145,100090.0,100080.0,0.016]
[1734082209741,0.79739082,100090.0,100080.0,0.016]
[1734082210340,0.88649986,100090.0,100080.0,0.016]
[1734082212145,0.76753698,100090.0,100080.0,0.016]
[1734082216048,0.88649986,100090.0,100080.0,0.016]
[1734082216652,2.38649986,100090.0,100080.0,0.016]
[1734082218349,0.049962,100070.0,100060.0,0.0643]
[1734082218546,0.53638988,100070.0,100060.0,0.0643]
[1734082218948,0.63630495,100070.0,100060.0,0.0643]
[1734082219247,0.57349101,100070.0,100060.0,0.0643]
[1734082219649,0.57549101,100070.0,100060.0,0.0823]
[1734082225451,0.64846822,100070.0,100060.0,0.0823]
[1734082225647,0.58565428,100070.0,100060.0,0.0823]
[1734082227150,0.67472258,100070.0,100060.0,0.0823]
[1734082228258,0.79368546,100070.0,100060.0,0.0823]
[1734082229264,0.70461716,100070.0,100060.0,0.32182716]
[1734082231261,0.85358809,100070.0,100060.0,0.32182716]
[1734082232160,0.73462521,100070.0,100060.0,0.32182716]
[1734082232364,0.67181127,100070.0,100060.0,0.32182716]
[1734082232662,0.73462521,100070.0,100060.0,0.32182716]
[1734082238057,0.73362521,100070.0,100060.0,0.31482716]
[1734082238257,0.73262521,100070.0,100060.0,0.30782716]
[1734082238659,0.91138335,100070.0,100060.0,0.30782716]
[1734082239572,0.73262521,100070.0,100060.0,0.30782716]
[1734082240464,0.75243239,100070.0,100060.0,0.30782716]
[1734082242258,0.7822196,100070.0,100060.0,0.30782716]
[1734082246467,0.7822196,100070.0,100060.0,0.27522716]
[1734082247374,0.7822196,100070.0,100060.0,0.24352716]
[1734082248168,0.8128196,100070.0,100060.0,0.24352716]
[1734082250573,2.3128196,100070.0,100060.0,0.24352716]
[1734082252464,2.37563354,100070.0,100060.0,0.24352716]
[1734082252772,0.049967,100060.0,100050.0,8.242e-05]
[1734082252964,0.56849488,100060.0,100050.0,8.242e-05]
[1734082253175,0.7476576,100060.0,100050.0,8.242e-05]
[1734082253478,0.87786037,100060.0,100050.0,8.242e-05]
[1734082253663,0.66842992,100060.0,100050.0,8.242e-05]
[1734082254166,0.66842992,100060.0,100050.0,0.00408242]
[1734082254379,0.66942992,100060.0,100050.0,0.00508242]
[1734082255170,0.84845303,100060.0,100050.0,0.00508242]
[1734082255572,0.66942992,100060.0,100050.0,0.00508242]
[1734082256373,0.84838532,100060.0,100050.0,0.00508242]
[1734082260276,0.91119926,100060.0,100050.0,0.00508242]
[1734082260479,2.44249926,100060.0,100050.0,0.00508242]
[1734082262582,2.80329926,100060.0,100050.0,0.00508242]
[1734082262881,2.74048532,100060.0,100050.0,0.00508242]
[1734082263280,1.24048532,100060.0,100050.0,0.00508242]
[1734082263482,1.08355744,100060.0,100050.0,0.00508242]
[1734082263675,1.23968532,100060.0,100050.0,0.00508242]
[1734082264380,2.73968532,100060.0,100050.0,0.00508242]
[1734082270275,1.17708532,100060.0,100050.0,0.00508242]
[1734082270786,1.32597726,100060.0,100050.0,0.00508242]
[1734082273392,1.17708532,100060.0,100050.0,0.00508242]
[1734082277980,1.05145744,100060.0,100050.0,0.00508242]
[1734082278386,0.87159192,100060.0,100050.0,0.11786836]
[1734082278592,0.93440586,100060.0,100050.0,0.05505442]
[1734082278781,1.05360577,100060.0,100050.0,0.05505442]
[1734082279189,0.93440586,100060.0,100050.0,0.05505442]
[1734082279496,1.05362111,100060.0,100050.0,0.05505442]
[1734082279696,0.93440586,100060.0,100050.0,0.05505442]
[1734082280582,0.98437286,100060.0,100050.0,0.05505442]
[1734082280789,0.92155892,100060.0,100050.0,0.05505442]
[1734082280991,0.98437286,100060.0,100050.0,0.05505442]
[1734082283185,0.62357286,100060.0,100050.0,0.05505442]
[1734082286387,0.51079192,100060.0,100050.0,0.11786836]
[1734082286589,0.12024998,100060.0,100050.0,1.01819552]
[1734082286890,0.14899192,100070.0,100060.0,0.049967]
[1734082286891,0.11927336,100070.0,100060.0,0.049967]
[1734082287191,0.11927336,100070.0,100060.0,1.0752291]
[1734082287697,0.67252386,100080.0,100070.0,0.049962]
[1734082287698,0.62256386,100080.0,100070.0,0.049962]
[1734082288084,0.56955322,100080.0,100070.0,0.049962]
[1734082288287,0.55974992,100080.0,100070.0,0.11277594]
[1734082288489,0.47357194,100080.0,100070.0,0.11277594]
[1734082288693,0.47357194,100080.0,100070.0,0.049962]
[1734082289198,0.47357194,100080.0,100070.0,0.11277594]
[1734082289594,0.049958,100080.0,100070.0,0.11277594]
[1734082289790,0.19894592,100090.0,100080.0,0.049957]
[1734082290088,0.049954,100090.0,100080.0,0.17667094]
[1734082290493,0.12301302,100090.0,100080.0,0.113857]
[1734082290890,0.13201302,100090.0,100080.0,0.114857]
[1734082291090,0.12176794,100090.0,100080.0,0.114857]
[1734082291692,0.13076794,100090.0,100080.0,0.114857]
[1734082294892,0.13076794,100090.0,100080.0,0.084157]
[1734082306501,0.13076794,100090.0,100080.0,0.14697094]
[1734082307804,0.067954,100090.0,100080.0,0.14697094]
[1734082308200,0.13076794,100090.0,100080.0,0.14697094]
[1734082309203,0.018,100090.0,100080.0,0.20978488]
[1734082309401,0.018,100090.0,100080.0,1.1356633]
[1734082309612,0.018,100090.0,100080.0,1.1687633]
[1734082310109,0.018,100090.0,100080.0,1.17880112]
[1734082310501,0.018,100090.0,100080.0,1.41824033]
[1734082312904,0.018,100090.0,100080.0,1.35542639]
[1734082313104,0.018,100090.0,100080.0,1.41824033]
[1734082313305,0.018,100090.0,100080.0,1.35542639]
[1734082314313,0.018,100090.0,100080.0,1.41824033]
[1734082314706,0.018,100090.0,100080.0,1.23936191]
[1734082315411,0.018,100090.0,100080.0,1.86758434]
[1734082316712,0.018,100090.0,100080.0,1.62814513]
[1734082317815,0.018,100090.0,100080.0,1.26734513]
[1734082318014,0.018,100090.0,100080.0,1.62814513]
[1734082319515,0.018,100090.0,100080.0,1.98743587]
[1734082319912,0.018,100090.0,100080.0,1.60123587]
[1734082320114,0.018,100090.0,100080.0,1.60157953]
[1734082320310,0.018,100090.0,100080.0,1.98777953]
[1734082320810,0.018,100090.0,100080.0,2.01874184]
[1734082321010,0.018,100090.0,100080.0,1.63254184]
[1734082322610,0.018,100090.0,100080.0,1.72485851]
[1734082322913,0.018,100090.0,100080.0,1.33313289]
[1734082323120,0.018,100090.0,100080.0,1.60104551]
[1734082324918,0.018,100090.0,100080.0,1.98724551]
[1734082325526,0.018,100090.0,100080.0,2.1100803]
[1734082327628,0.018,100090.0,100080.0,2.10749976]
[1734082328317,0.018,100090.0,100080.0,1.98187188]
[1734082328522,0.018,100090.0,100080.0,2.10749976]
[1734082336419,0.018,100090.0,100080.0,2.10788329]
[1734082337419,0.018,100090.0,100080.0,1.74708329]
[1734082337618,0.018,100090.0,100080.0,2.34305541]
[1734082337829,0.018,100090.0,100080.0,2.46868329]
[1734082338535,0.018,100090.0,100080.0,2.34305541]
[1734082338723,0.018,100090.0,100080.0,2.46868329]
[1734082341127,0.44161394,100090.0,100080.0,1.15478905]
[1734082341429,0.55636594,100090.0,100080.0,1.12925167]
[1734082341729,0.65628101,100090.0,100080.0,0.050957]
[1734082341935,0.80527293,100090.0,100080.0,0.47024712]
[1734082343627,0.80527293,100090.0,100080.0,0.23066217]
[1734082346225,0.81550576,100090.0,100080.0,0.23066217]
[1734082346625,0.45470576,100090.0,100080.0,0.23066217]
[1734082346830,0.9347627,100090.0,100080.0,0.23066217]
[1734082348933,0.78577078,100090.0,100080.0,0.23066217]
[1734082352028,0.9347627,100090.0,100080.0,0.23066217]
[1734082352336,0.78577078,100090.0,100080.0,0.050957]
[1734082352535,0.78577078,100090.0,100080.0,0.001]
[1734082356231,1.29757664,100090.0,100080.0,0.001]
[1734082356543,0.049957,100080.0,100070.0,0.17970517]
[1734082356736,0.6873203,100080.0,100070.0,0.17970517]
[1734082357140,0.78724535,100080.0,100070.0,0.17970517]
[1734082357840,0.79124535,100080.0,100070.0,0.17970517]
[1734082358140,0.80024535,100080.0,100070.0,0.17970517]
[1734082358841,0.73743141,100080.0,100070.0,0.17970517]
[1734082359044,0.73743141,100080.0,100070.0,0.24251911]
[1734082359629,0.73743141,100080.0,100070.0,0.06281394]
[1734082359939,0.73743141,100080.0,100070.0,0.24251911]
[1734082360145,0.73743141,100080.0,100070.0,0.06281394]
[1734082361029,0.67461747,100080.0,100070.0,0.29248111]
[1734082361235,0.73743141,100080.0,100070.0,0.29248111]
[1734082366144,0.73743141,100080.0,100070.0,0.22966717]
[1734082368141,0.73743141,100080.0,100070.0,0.46925212]
[1734082370138,0.88642333,100080.0,100070.0,0.46925212]
[1734082370340,0.88642333,100080.0,100070.0,0.50076803]
[1734082370944,0.88642333,100080.0,100070.0,0.46925212]
[1734082371141,0.88642333,100080.0,100070.0,0.28954695]
[1734082374151,0.94923727,100080.0,100070.0,0.28954695]
[1734082374852,0.83010185,100080.0,100070.0,0.28954695]
[1734082375846,0.46930185,100080.0,100070.0,0.28954695]